bitfinex/quotes_BTCUSD_20250530
["timestamp","ask_amount","ask_price","bid_price","bid_amount"]
[1748603595185,1.56185313,105900.0,105890.0,0.03371064]
[1748603596630,1.56185313,105900.0,105890.0,0.01731064]
[1748603600271,1.96977313,105900.0,105890.0,0.01731064]
[1748603604988,1.67729313,105900.0,105890.0,0.01731064]
[1748603605199,1.96973313,105900.0,105890.0,0.01731064]
[1748603607346,1.96973313,105900.0,105890.0,0.00131064]
[1748603607763,1.96973313,105900.0,105890.0,0.01681064]
[1748603608628,2.07983944,105900.0,105890.0,0.00131064]
[1748603609301,2.08476468,105900.0,105890.0,0.00131064]
[1748603609956,2.08476468,105900.0,105890.0,0.00031064]
[1748603610167,2.08676468,105900.0,105890.0,0.00031064]
[1748603610375,2.18611468,105900.0,105890.0,0.00031064]
[1748603611043,2.18711468,105900.0,105890.0,0.00031064]
[1748603615110,0.56234223,105870.0,105860.0,0.016]
[1748603615348,0.74403618,105870.0,105860.0,0.01648895]
[1748603615800,0.76336218,105870.0,105860.0,0.01648895]
[1748603616461,0.76336218,105870.0,105860.0,0.00048895]
[1748603616880,0.77836218,105870.0,105860.0,0.00148895]
[1748603617114,0.77836218,105870.0,105860.0,0.00248895]
[1748603617330,0.76336218,105870.0,105860.0,0.00248895]
[1748603618442,0.76325025,105870.0,105860.0,0.01888895]
[1748603619113,0.67261025,105870.0,105860.0,0.03548895]
[1748603619342,1.05565025,105870.0,105860.0,0.03548895]
[1748603619565,0.6580694,105870.0,105860.0,0.03548895]
[1748603619830,1.0411094,105870.0,105860.0,0.03548895]
[1748603622555,1.0409394,105870.0,105860.0,0.03548895]
[1748603623185,0.67244025,105870.0,105860.0,0.01888895]
[1748603623412,1.05548025,105870.0,105860.0,0.00248895]
[1748603624539,1.05548025,105870.0,105860.0,0.01888895]
[1748603625827,1.05530565,105870.0,105860.0,0.01888895]
[1748603626474,1.05522565,105870.0,105860.0,0.03398895]
[1748603626897,0.67226565,105870.0,105860.0,0.03398895]
[1748603627115,1.05522565,105870.0,105860.0,0.03398895]
[1748603628049,1.05509306,105870.0,105860.0,0.03398895]
[1748603631273,1.05509306,105870.0,105860.0,0.03414422]
[1748603634845,1.05509306,105870.0,105860.0,0.01904422]
[1748603636270,1.46313306,105870.0,105860.0,0.01904422]
[1748603637225,1.46313306,105870.0,105860.0,0.00264422]
[1748603641976,1.46313306,105870.0,105860.0,0.01864422]
[1748603652645,1.46313306,105870.0,105860.0,0.00264422]
[1748603652876,1.46313306,105870.0,105860.0,0.01914422]
[1748603653297,1.47923306,105870.0,105860.0,0.00264422]
[1748603654175,1.46313306,105870.0,105860.0,0.00264422]
[1748603658577,1.49543306,105870.0,105860.0,0.00264422]
[1748603658993,1.47943306,105870.0,105860.0,0.00264422]
[1748603662715,1.46313306,105870.0,105860.0,0.00264422]
[1748603663759,1.49523306,105870.0,105860.0,0.00264422]
[1748603666110,1.21162306,105870.0,105860.0,0.00264422]
[1748603666325,1.47859306,105870.0,105860.0,0.00264422]
[1748603666557,1.46289306,105870.0,105860.0,0.00264422]
[1748603666835,1.46289306,105870.0,105860.0,0.01764422]
[1748603666836,1.08017306,105870.0,105860.0,0.01764422]
[1748603667052,1.10835221,105870.0,105860.0,0.03184422]
[1748603667269,1.46989306,105870.0,105860.0,0.01564422]
[1748603667483,1.46689306,105870.0,105860.0,0.01564422]
[1748603667688,1.37241306,105870.0,105860.0,0.01564422]
[1748603667906,1.46589306,105870.0,105860.0,0.01564422]
[1748603668132,1.46389306,105870.0,105860.0,0.01564422]
[1748603668342,1.46489306,105870.0,105860.0,0.01564422]
[1748603668767,1.08217306,105870.0,105860.0,0.01564422]
[1748603668986,1.46489306,105870.0,105860.0,0.01564422]
[1748603679829,1.56424306,105870.0,105860.0,0.00064422]
[1748603680048,1.46489306,105870.0,105860.0,0.00064422]
[1748603681248,1.48109306,105870.0,105860.0,0.00064422]
[1748603683015,1.49659306,105870.0,105860.0,0.00064422]
[1748603683241,1.48109306,105870.0,105860.0,0.00064422]
[1748603684545,1.49659306,105870.0,105860.0,0.00064422]
[1748603685838,1.48109306,105870.0,105860.0,0.00064422]
[1748603687574,1.48129306,105870.0,105860.0,0.00064422]
[1748603688650,1.49729306,105870.0,105860.0,0.00064422]
[1748603689657,1.48129306,105870.0,105860.0,0.00064422]
[1748603691006,1.49709306,105870.0,105860.0,0.00064422]
[1748603691451,1.48129306,105870.0,105860.0,0.00064422]
[1748603698083,1.48069306,105870.0,105860.0,0.00064422]
[1748603698303,1.49639306,105870.0,105860.0,0.00064422]
[1748603698973,1.48069306,105870.0,105860.0,0.00064422]
[1748603703104,1.49579306,105870.0,105860.0,0.00064422]
[1748603705936,1.48069306,105870.0,105860.0,0.00064422]
[1748603709415,1.46489306,105870.0,105860.0,0.00064422]
[1748603713466,1.08225306,105870.0,105860.0,0.03304422]
[1748603713681,1.11019221,105870.0,105860.0,0.03304422]
[1748603713898,0.81815221,105870.0,105860.0,0.03304422]
[1748603714109,1.11019221,105870.0,105860.0,0.03304422]
[1748603714320,1.45019221,105870.0,105860.0,0.03304422]
[1748603714968,1.11019221,105870.0,105860.0,0.03304422]
[1748603715426,1.45019221,105870.0,105860.0,0.03304422]
[1748603716581,1.06771221,105870.0,105860.0,0.03304422]
[1748603716789,1.15815221,105870.0,105860.0,0.03304422]
[1748603716995,1.45019221,105870.0,105860.0,0.03304422]
[1748603717213,1.06771221,105870.0,105860.0,0.03304422]
[1748603717418,1.45019221,105870.0,105860.0,0.03304422]
[1748603718710,1.06771221,105870.0,105860.0,0.03304422]
[1748603718944,1.45003221,105870.0,105860.0,0.03304422]
[1748603721497,1.15803221,105870.0,105860.0,0.03304422]
[1748603721708,1.45003221,105870.0,105860.0,0.03304422]
[1748603730184,1.44995221,105870.0,105860.0,0.03304422]
[1748603740303,1.06771221,105870.0,105860.0,0.03304422]
[1748603740530,1.44991221,105870.0,105860.0,0.03304422]
[1748603744180,1.15803221,105870.0,105860.0,0.03304422]
[1748603744307,1.44987221,105870.0,105860.0,0.03304422]
[1748603746582,1.06771221,105870.0,105860.0,0.03304422]
[1748603746795,1.44987221,105870.0,105860.0,0.03304422]
[1748603747014,1.06771221,105870.0,105860.0,0.03304422]
[1748603747221,1.44987221,105870.0,105860.0,0.03304422]
[1748603749654,1.06771221,105870.0,105860.0,0.03304422]
[1748603749849,1.44975221,105870.0,105860.0,0.03304422]
[1748603755662,1.06771221,105870.0,105860.0,0.03304422]
[1748603755878,1.44975221,105870.0,105860.0,0.03304422]
[1748603772848,1.44963221,105870.0,105860.0,0.03304422]
[1748603776744,1.44963221,105870.0,105860.0,0.01694422]
[1748603789891,1.15795221,105870.0,105860.0,0.01694422]
[1748603790119,1.44955221,105870.0,105860.0,0.01694422]
[1748603790979,1.44955221,105870.0,105860.0,0.03194422]
[1748603792512,1.44955221,105870.0,105860.0,0.01694422]
[1748603801352,1.15795221,105870.0,105860.0,0.01694422]
[1748603801700,1.44947221,105870.0,105860.0,0.01694422]
[1748603804795,1.43014621,105870.0,105860.0,0.01694422]
[1748603805298,1.43010621,105870.0,105860.0,0.01694422]
[1748603810965,1.13862621,105870.0,105860.0,0.01694422]
[1748603811176,1.43006621,105870.0,105860.0,0.01694422]
[1748603820200,1.13862621,105870.0,105860.0,0.01694422]
[1748603820432,1.43002621,105870.0,105860.0,0.01694422]
[1748603822246,1.04838621,105870.0,105860.0,0.01694422]
[1748603822447,1.42978621,105870.0,105860.0,0.01694422]
[1748603823091,1.04838621,105870.0,105860.0,0.01694422]
[1748603823332,1.42978621,105870.0,105860.0,0.01694422]
[1748603824476,1.42978621,105870.0,105860.0,0.00064422]
[1748603825365,1.42978621,105870.0,105860.0,0.01654422]
[1748603829484,1.04838621,105870.0,105860.0,0.01654422]
[1748603829704,1.42974621,105870.0,105860.0,0.01654422]
[1748603831418,1.04838621,105870.0,105860.0,0.01654422]
[1748603831635,1.13842621,105870.0,105860.0,0.0502699]
[1748603831876,1.08974621,105870.0,105860.0,0.05930523]
[1748603832126,0.39030621,105870.0,105860.0,0.05930523]
[1748603832340,0.38930621,105870.0,105860.0,0.07060201]
[1748603832790,0.20821226,105870.0,105860.0,0.07060201]
[1748603833008,0.20721226,105870.0,105860.0,0.07060201]
[1748603833248,0.20721226,105870.0,105860.0,0.07160201]
[1748603833493,0.20721226,105870.0,105860.0,0.07060201]
[1748603833914,0.20721226,105870.0,105860.0,0.07360201]
[1748603835017,0.20721226,105870.0,105860.0,0.07660201]
[1748603836546,0.20721226,105870.0,105860.0,0.06530523]
[1748603842281,0.20721226,105870.0,105860.0,0.07660201]
[1748603842491,0.20721226,105870.0,105860.0,0.06530523]
[1748603842702,0.20721226,105870.0,105860.0,0.07660201]
[1748603843560,0.20721226,105870.0,105860.0,0.07896321]
[1748603848658,0.20721226,105870.0,105860.0,0.07886184]
[1748603852638,0.20721226,105870.0,105860.0,0.07895505]
[1748603854126,0.20721226,105870.0,105860.0,0.08863505]
[1748603856152,0.20721226,105870.0,105860.0,0.08627385]
[1748603857479,0.20721226,105870.0,105860.0,0.08629826]
[1748603859451,0.20721226,105870.0,105860.0,0.10128173]
[1748603860725,0.20721226,105870.0,105860.0,0.09002887]
[1748603861768,0.20721226,105870.0,105860.0,0.09005723]
[1748603864391,0.58930621,105870.0,105860.0,0.04417376]
[1748603864620,0.60430621,105870.0,105860.0,0.05546703]
[1748603865946,0.60430621,105870.0,105860.0,0.03514311]
[1748603866160,0.60430621,105870.0,105860.0,0.05547182]
[1748603869508,0.60430621,105870.0,105860.0,0.04417809]
[1748603870573,0.31326621,105870.0,105860.0,0.04417809]
[1748603870789,0.58930621,105870.0,105860.0,0.05547182]
[1748603871007,0.58930621,105870.0,105860.0,0.07207182]
[1748603872129,0.58930621,105870.0,105860.0,0.06077809]
[1748603874152,0.58930621,105870.0,105860.0,0.04417809]
[1748603876078,0.58930621,105870.0,105860.0,0.05547182]
[1748603876500,0.58930621,105870.0,105860.0,0.04417809]
[1748603878840,0.58930621,105870.0,105860.0,0.05917809]
[1748603879056,0.58930621,105870.0,105860.0,0.05014311]
[1748603879293,0.58930621,105870.0,105860.0,0.07436788]
[1748603879521,0.58930621,105870.0,105860.0,0.05916788]
[1748603881545,0.29826621,105870.0,105860.0,0.07536788]
[1748603881783,0.58922621,105870.0,105860.0,0.07536788]
[1748603882697,0.29826621,105870.0,105860.0,0.07536788]
[1748603882934,0.29826621,105870.0,105860.0,0.08664885]
[1748603883202,0.29826621,105870.0,105860.0,0.10163232]
[1748603883438,0.20721226,105870.0,105860.0,0.09035135]
[1748603883670,0.20721226,105870.0,105860.0,0.09271255]
[1748603884372,0.20721226,105870.0,105860.0,0.09035135]
[1748603885947,0.20721226,105870.0,105860.0,0.09034258]
[1748603890482,0.20650822,105870.0,105860.0,0.0903359]
[1748603893669,0.20650822,105870.0,105860.0,0.10159638]
[1748603895258,0.20650822,105870.0,105860.0,0.44159638]
[1748603897342,0.20650822,105870.0,105860.0,0.4303359]
[1748603897548,0.20650822,105870.0,105860.0,0.49542056]
[1748603898617,0.20650822,105870.0,105860.0,0.49542295]
[1748603901231,0.20650822,105870.0,105860.0,0.68435172]
[1748603901653,0.20650822,105870.0,105860.0,0.49542295]
[1748603902355,0.20650822,105870.0,105860.0,1.00862499]
[1748603902356,0.0175973,105870.0,105860.0,1.00862499]
[1748603902579,0.01888993,105870.0,105860.0,1.05954597]
[1748603902820,0.18890914,105880.0,105870.0,0.22955646]
[1748603903048,0.18890914,105880.0,105870.0,0.32764706]
[1748603903449,0.18890914,105880.0,105870.0,0.11984524]
[1748603903728,0.18890914,105880.0,105870.0,0.12220616]
[1748603904206,0.18890914,105880.0,105870.0,0.52220616]
[1748603904441,0.18890914,105880.0,105870.0,0.52284524]
[1748603904675,0.18890914,105880.0,105870.0,0.72120161]
[1748603904907,0.18890914,105880.0,105870.0,0.71175616]
[1748603905316,0.18890914,105880.0,105870.0,0.73064679]
[1748603905735,0.18890914,105880.0,105870.0,0.72320152]
[1748603906569,0.18890914,105880.0,105870.0,0.73264679]
[1748603906777,0.18890914,105880.0,105870.0,0.72320152]
[1748603907001,0.18890914,105880.0,105870.0,0.72320161]
[1748603907207,0.18890914,105880.0,105870.0,0.32313935]
[1748603907421,0.20779835,105880.0,105870.0,0.34202981]
[1748603907632,0.01888885,105880.0,105870.0,0.75147473]
[1748603908073,0.26470477,105900.0,105890.0,0.34]
[1748603908313,0.26470477,105900.0,105890.0,0.3823546]
[1748603908526,0.26470477,105900.0,105890.0,0.40636569]
[1748603909181,0.26470477,105900.0,105890.0,0.40736569]
[1748603909410,0.26470477,105900.0,105890.0,0.39235955]
[1748603909653,0.26470477,105900.0,105890.0,0.40736569]
[1748603910347,0.26470477,105900.0,105890.0,0.39444586]
[1748603911239,0.26470477,105900.0,105890.0,0.77318631]
[1748603911455,0.26470477,105900.0,105890.0,0.79443039]
[1748603912237,0.18885741,105900.0,105890.0,0.79443039]
[1748603913523,0.18885741,105900.0,105890.0,0.79459499]
[1748603914168,0.18885741,105900.0,105890.0,0.39459499]
[1748603914595,0.18885741,105900.0,105890.0,0.79459499]
[1748603915564,0.18885741,105900.0,105890.0,0.77435091]
[1748603915774,0.18885741,105900.0,105890.0,0.79458475]
[1748603917666,0.18885741,105900.0,105890.0,0.39458475]
[1748603918087,0.18885741,105900.0,105890.0,0.79458475]
[1748603918998,0.18885741,105900.0,105890.0,0.98345999]
[1748603919228,0.01888439,105900.0,105890.0,1.01010545]
[1748603919438,0.20773937,105910.0,105900.0,0.2390427]
[1748603919641,0.20773937,105910.0,105900.0,0.54466079]
[1748603919864,0.20773937,105910.0,105900.0,0.55364743]
[1748603920088,0.20773937,105910.0,105900.0,0.56309021]
[1748603920745,0.20773937,105910.0,105900.0,0.56323706]
[1748603921160,0.19829775,105910.0,105900.0,0.54435177]
[1748603921376,0.19829775,105910.0,105900.0,0.54735177]
[1748603921614,0.19829775,105910.0,105900.0,0.95679437]
[1748603921827,0.19829775,105910.0,105900.0,0.96623688]
[1748603922041,0.19829775,105910.0,105900.0,0.96823688]
[1748603922724,0.19829775,105910.0,105900.0,0.95879437]
[1748603922935,0.19829775,105910.0,105900.0,0.9588743]
[1748603923155,0.19829775,105910.0,105900.0,0.95879437]
[1748603924023,0.19829775,105910.0,105900.0,0.94980773]
[1748603924242,0.19829775,105910.0,105900.0,0.95879012]
[1748603924878,0.19829775,105910.0,105900.0,0.94934752]
[1748603927509,0.17617314,105910.0,105900.0,0.95879021]
[1748603927914,0.16673126,105910.0,105900.0,0.94934752]
[1748603928325,0.16673126,105910.0,105900.0,0.96389308]
[1748603928543,0.16673126,105910.0,105900.0,0.96399586]
[1748603932236,0.16673126,105910.0,105900.0,0.94901777]
[1748603932880,0.16673126,105910.0,105900.0,0.94902548]
[1748603934043,0.16673126,105910.0,105900.0,0.9395827]
[1748603934667,0.16673126,105910.0,105900.0,1.2795827]
[1748603935080,0.16673126,105910.0,105900.0,1.28902557]
[1748603935500,0.16673126,105910.0,105900.0,1.29846826]
[1748603935715,0.16673126,105910.0,105900.0,1.30791086]
[1748603936582,0.16673126,105910.0,105900.0,1.31735337]
[1748603937264,0.16673126,105910.0,105900.0,1.31735228]
[1748603937478,0.16673126,105910.0,105900.0,1.30790977]
[1748603938296,0.16673126,105910.0,105900.0,0.8000842]
[1748603938503,0.16673126,105910.0,105900.0,1.28890439]
[1748603939631,0.16673126,105910.0,105900.0,1.29834708]
[1748603940045,0.16673126,105910.0,105900.0,1.28890439]
[1748603941070,0.16673126,105910.0,105900.0,1.28890764]
[1748603941278,0.16673126,105910.0,105900.0,1.27991067]
[1748603941529,0.16673126,105910.0,105900.0,1.2794656]
[1748603941965,0.16673126,105910.0,105900.0,1.09060819]
[1748603942612,0.16673126,105910.0,105900.0,1.2794656]
[1748603943727,0.16673126,105910.0,105900.0,1.09060819]
[1748603944425,0.16673126,105910.0,105900.0,1.27946479]
[1748603944656,0.16673126,105910.0,105900.0,1.28890766]
[1748603944873,0.16673126,105910.0,105900.0,1.30779313]
[1748603945291,0.17617323,105910.0,105900.0,1.31723573]
[1748603945495,0.17617323,105910.0,105900.0,1.29835044]
[1748603945710,0.17617323,105910.0,105900.0,1.38795044]
[1748603946331,0.17617323,105910.0,105900.0,1.45278752]
[1748603947395,0.15352238,105910.0,105900.0,1.44334474]
[1748603947609,0.13139825,105910.0,105900.0,1.44334474]
[1748603948465,0.13139825,105910.0,105900.0,1.45278752]
[1748603948883,0.13139825,105910.0,105900.0,1.46228552]
[1748603949654,0.13139825,105910.0,105900.0,1.47172821]
[1748603949862,0.13139825,105910.0,105900.0,1.45284274]
[1748603950497,0.13139825,105910.0,105900.0,1.36324274]
[1748603950707,0.13139825,105910.0,105900.0,1.36331901]
[1748603950944,0.12195628,105910.0,105900.0,1.36331901]
[1748603951436,0.12195628,105910.0,105900.0,1.16501873]
[1748603951644,0.12195628,105910.0,105900.0,1.35387614]
[1748603951860,0.12195628,105910.0,105900.0,1.36331901]
[1748603952310,0.12195628,105910.0,105900.0,1.02331901]
[1748603953157,0.12195628,105910.0,105900.0,1.36335244]
[1748603953370,0.12195628,105910.0,105900.0,1.34825244]
[1748603953996,0.12195628,105910.0,105900.0,1.14995216]
[1748603954893,0.12195628,105910.0,105900.0,1.34825244]
[1748603955120,0.12195628,105910.0,105900.0,1.14995216]
[1748603955348,0.12195628,105910.0,105900.0,1.33880957]
[1748603956507,0.12195628,105910.0,105900.0,1.14995216]
[1748603957406,0.12195628,105910.0,105900.0,1.33880957]
[1748603957631,0.12195628,105910.0,105900.0,1.33884973]
[1748603959324,0.12195628,105910.0,105900.0,1.30564163]
[1748603961261,0.12195628,105910.0,105900.0,0.82626422]
[1748603961480,0.12195628,105910.0,105900.0,1.11670422]
[1748603961911,0.12195628,105910.0,105900.0,1.1167104]
[1748603962397,0.09930515,105910.0,105900.0,0.8262704]
[1748603965260,0.09930515,105910.0,105900.0,1.01512781]
[1748603965471,0.09930515,105910.0,105900.0,1.02457059]
[1748603965700,0.09930515,105910.0,105900.0,1.03401328]
[1748603965928,0.09930515,105910.0,105900.0,1.02457059]
[1748603966147,0.09930515,105910.0,105900.0,1.01516887]
[1748603966361,0.09930515,105910.0,105900.0,1.02461174]
[1748603967923,0.10874712,105910.0,105900.0,1.03405443]
[1748603968363,0.10874712,105910.0,105900.0,1.02461174]
[1748603968576,0.10874712,105910.0,105900.0,0.82631146]
[1748603968795,0.10874712,105910.0,105900.0,1.01516887]
[1748603969014,0.10874712,105910.0,105900.0,0.82631146]
[1748603969264,0.10874712,105910.0,105900.0,0.79557061]
[1748603969485,0.14024712,105910.0,105900.0,0.39557061]
[1748603970353,0.14024712,105910.0,105900.0,0.39557041]
[1748603971728,0.14024712,105910.0,105900.0,0.42882789]
[1748603974679,0.14024712,105910.0,105900.0,0.42880663]
[1748603975733,0.14024712,105910.0,105900.0,0.44381685]
[1748603976943,0.14024712,105910.0,105900.0,0.42880663]
[1748603977807,0.14024712,105910.0,105900.0,0.44381589]
[1748603979092,0.14024712,105910.0,105900.0,0.44380615]
[1748603983490,0.14024712,105910.0,105900.0,0.4437751]
[1748603986680,0.12524712,105910.0,105900.0,0.4437751]
[1748603987896,0.12524712,105910.0,105900.0,0.4105421]
[1748603988155,0.12524712,105910.0,105900.0,0.44377115]
[1748603992208,0.12524712,105910.0,105900.0,0.44377291]
[1748603998124,0.10874712,105910.0,105900.0,0.44377291]
[1748603998338,0.10874712,105910.0,105900.0,0.42876365]
[1748604000366,0.10874712,105910.0,105900.0,0.44376365]
[1748604000809,0.10874712,105910.0,105900.0,0.44376639]
[1748604001482,0.10874712,105910.0,105900.0,0.42876639]
[1748604003215,0.10874712,105910.0,105900.0,0.41927954]
[1748604003885,0.10874712,105910.0,105900.0,0.41928525]
[1748604004792,0.23140107,105910.0,105900.0,0.06107238]
[1748604005023,0.23140107,105910.0,105900.0,0.02927707]
[1748604005270,0.23140107,105910.0,105900.0,0.04054242]
[1748604005498,0.23140107,105910.0,105900.0,0.02552484]
[1748604008059,0.23140107,105910.0,105900.0,0.02551644]
[1748604009506,0.19980107,105910.0,105900.0,0.02551644]
[1748604009741,0.10874712,105910.0,105900.0,0.04201644]
[1748604009971,0.10874712,105910.0,105900.0,0.12867705]
[1748604010456,0.02832495,105910.0,105900.0,0.3458619]
[1748604010705,0.23602547,105920.0,105910.0,0.57028146]
[1748604010940,0.21714446,105920.0,105910.0,0.63504208]
[1748604011170,0.20770373,105920.0,105910.0,0.42731882]
[1748604011395,0.20770373,105920.0,105910.0,0.62560037]
[1748604012099,0.19826283,105920.0,105910.0,1.02660037]
[1748604012322,0.19826283,105920.0,105910.0,1.02859665]
[1748604012543,0.19826283,105920.0,105910.0,1.02759665]
[1748604013217,0.18882175,105920.0,105910.0,0.8293151]
[1748604013447,0.18882175,105920.0,105910.0,0.86251936]
[1748604013896,0.18882175,105920.0,105910.0,0.86451936]
[1748604014784,0.14882175,105920.0,105910.0,0.84871936]
[1748604015474,0.14882175,105920.0,105910.0,0.86511936]
[1748604016664,0.14882175,105920.0,105910.0,0.86509523]
[1748604018252,0.14882175,105920.0,105910.0,0.88007422]
[1748604018478,0.14882175,105920.0,105910.0,0.54007422]
[1748604018706,0.14882175,105920.0,105910.0,0.54019708]
[1748604019612,0.14882175,105920.0,105910.0,0.88019708]
[1748604020741,0.14882175,105920.0,105910.0,0.88013625]
[1748604021671,0.2556757,105920.0,105910.0,0.4329954]
[1748604021893,0.2711757,105920.0,105910.0,0.36433286]
[1748604022347,0.2711757,105920.0,105910.0,0.02433286]
[1748604022586,0.2711757,105920.0,105910.0,0.01310454]
[1748604027690,0.14882175,105920.0,105910.0,0.01310454]
[1748604028187,0.14882175,105920.0,105910.0,0.03933286]
[1748604028849,0.14882175,105920.0,105910.0,0.05453286]
[1748604029084,0.14882175,105920.0,105910.0,0.03432286]
[1748604029312,0.14882175,105920.0,105910.0,0.05453369]
[1748604029566,0.14882175,105920.0,105910.0,0.06951268]
[1748604029794,0.14882175,105920.0,105910.0,0.03933369]
[1748604030472,0.14882175,105920.0,105910.0,0.05431268]
[1748604031436,0.14882175,105920.0,105910.0,0.39431268]
[1748604032791,0.14882175,105920.0,105910.0,0.37931268]
[1748604033020,0.14882175,105920.0,105910.0,0.03931268]
[1748604033247,0.14869666,105920.0,105910.0,0.03931268]
[1748604033496,0.14869666,105920.0,105910.0,0.02433286]
[1748604033723,0.14869666,105920.0,105910.0,0.03931185]
[1748604036013,0.14869666,105920.0,105910.0,0.03931535]
[1748604036218,0.16419666,105920.0,105910.0,0.03931535]
[1748604037337,0.14869666,105920.0,105910.0,0.03931535]
[1748604037783,0.14869666,105920.0,105910.0,0.03932122]
[1748604038009,0.14869666,105920.0,105910.0,0.04891194]
[1748604038900,0.16509666,105920.0,105910.0,0.04891194]
[1748604039346,0.16509666,105920.0,105910.0,0.38891194]
[1748604039566,0.16509666,105920.0,105910.0,0.37767896]
[1748604039824,0.27275061,105920.0,105910.0,0.04891689]
[1748604040070,0.27275061,105920.0,105910.0,0.02434718]
[1748604040071,0.34859797,105920.0,105910.0,0.02434718]
[1748604040288,0.34859797,105920.0,105910.0,0.01310925]
[1748604042107,0.34859797,105920.0,105910.0,0.01311432]
[1748604042569,0.34859797,105920.0,105910.0,0.00412286]
[1748604043471,0.27275061,105920.0,105910.0,0.00412286]
[1748604058479,0.61275061,105920.0,105910.0,0.00412286]
[1748604058700,0.27275061,105920.0,105910.0,0.00412286]
[1748604065028,0.28729146,105920.0,105910.0,0.00012286]
[1748604065266,0.28729146,105920.0,105910.0,0.00112286]
[1748604066201,0.28729146,105920.0,105910.0,0.00212286]
[1748604066433,0.62729146,105920.0,105910.0,0.00212286]
[1748604067204,0.62729146,105920.0,105900.0,0.00014685]
[1748604067205,0.19828138,105910.0,105900.0,0.00014685]
[1748604067455,0.33245284,105910.0,105900.0,0.00014685]
[1748604067691,0.68699369,105910.0,105900.0,0.00014685]
[1748604068659,0.68684017,105910.0,105900.0,0.00014685]
[1748604069371,0.77935139,105910.0,105900.0,0.00014685]
[1748604070988,0.77922705,105910.0,105900.0,0.00014685]
[1748604071223,0.79779095,105910.0,105900.0,0.00014685]
[1748604072171,0.70527973,105910.0,105900.0,0.00014685]
[1748604075194,0.70509319,105910.0,105900.0,0.00014685]
[1748604075422,0.73344919,105910.0,105900.0,0.00014685]
[1748604078251,0.73325509,105910.0,105900.0,0.00014685]
[1748604079674,0.73325509,105910.0,105900.0,0.00025309]
[1748604080786,0.73818068,105910.0,105900.0,0.00025309]
[1748604081898,0.54782102,105860.0,105850.0,0.0316]
[1748604082321,0.29887497,105860.0,105850.0,0.03174702]
[1748604083314,0.29887497,105860.0,105850.0,0.03374702]
[1748604084028,0.29887497,105860.0,105850.0,0.03574702]
[1748604084493,0.29887497,105860.0,105850.0,0.04471436]
[1748604084998,0.20782102,105860.0,105850.0,0.57602268]
[1748604085233,0.1982357,105860.0,105850.0,0.59531888]
[1748604085464,0.20166736,105860.0,105850.0,0.60526594]
[1748604085703,0.20166736,105860.0,105850.0,0.61079787]
[1748604085704,0.19222137,105860.0,105850.0,0.61079787]
[1748604085984,0.18277511,105860.0,105850.0,0.61079787]
[1748604086202,0.18277511,105860.0,105850.0,1.01079787]
[1748604086449,0.18260546,105860.0,105850.0,1.01079787]
[1748604086670,0.18260546,105860.0,105850.0,1.00903454]
[1748604086897,0.18260546,105860.0,105850.0,1.02024855]
[1748604087121,0.18260546,105860.0,105850.0,1.00903454]
[1748604087384,0.18260546,105860.0,105850.0,1.00903832]
[1748604087600,0.18241757,105860.0,105850.0,0.99959108]
[1748604087824,0.18225338,105860.0,105850.0,0.99959108]
[1748604088480,0.18225338,105860.0,105850.0,1.06959108]
[1748604089015,0.18225338,105860.0,105850.0,1.08848529]
[1748604089291,0.18225338,105860.0,105850.0,1.07903832]
[1748604089545,0.18225338,105860.0,105850.0,1.09793253]
[1748604089763,0.18225338,105860.0,105850.0,1.11247338]
[1748604090011,0.20782119,105860.0,105850.0,1.11247302]
[1748604090234,0.21726762,105860.0,105850.0,1.1219199]
[1748604091151,0.20765778,105860.0,105850.0,1.09357899]
[1748604091594,0.20765778,105860.0,105850.0,1.0935902]
[1748604092031,0.20765778,105860.0,105850.0,1.07469581]
[1748604092249,0.1982114,105860.0,105850.0,1.08414314]
[1748604092474,0.1982114,105860.0,105850.0,0.88574919]
[1748604093420,0.19803192,105860.0,105850.0,0.81374919]
[1748604093643,0.19803192,105860.0,105850.0,0.81392995]
[1748604095680,0.19803192,105860.0,105850.0,1.00287657]
[1748604097244,0.19803192,105860.0,105850.0,0.81392995]
[1748604097485,0.18892716,105870.0,105850.0,0.81392995]
[1748604097486,0.01888831,105880.0,105870.0,0.03777967]
[1748604097733,0.35921192,105900.0,105890.0,0.55720544]
[1748604097734,0.07584736,105900.0,105890.0,0.55720544]
[1748604097970,0.02832539,105910.0,105900.0,0.21718521]
[1748604098196,0.02832432,105910.0,105900.0,0.60670987]
[1748604098443,0.21716461,105910.0,105900.0,0.60236615]
[1748604098681,0.20772317,105910.0,105900.0,0.6078747]
[1748604098925,0.19828146,105910.0,105900.0,0.6078747]
[1748604099162,0.19828146,105910.0,105900.0,0.60802178]
[1748604099399,0.19828146,105910.0,105900.0,0.61746447]
[1748604099637,0.19828146,105910.0,105900.0,0.62866855]
[1748604099864,0.19828146,105910.0,105900.0,0.63970545]
[1748604100088,0.19828146,105910.0,105900.0,0.45084804]
[1748604100308,0.19828146,105910.0,105900.0,0.63970545]
[1748604100527,0.19828146,105910.0,105900.0,0.62575421]
[1748604101218,0.18883958,105910.0,105900.0,0.42745393]
[1748604101926,0.18883958,105910.0,105900.0,0.82745393]
[1748604104843,0.18883958,105910.0,105900.0,0.81624994]
[1748604105551,0.16671486,105910.0,105900.0,0.81624994]
[1748604107878,0.16671486,105910.0,105900.0,0.80170909]
[1748604108118,0.16671486,105910.0,105900.0,0.06170909]
[1748604108339,0.25776881,105910.0,105900.0,0.02162676]
[1748604108783,0.25776881,105910.0,105900.0,0.02178899]
[1748604109223,0.27386881,105910.0,105900.0,0.02178899]
[1748604109661,0.25776881,105910.0,105900.0,0.02178899]
[1748604110548,0.25776881,105910.0,105900.0,0.75386116]
[1748604111447,0.25776881,105910.0,105900.0,0.36178899]
[1748604111701,0.28816881,105910.0,105900.0,0.00330931]
[1748604112825,0.27316881,105910.0,105900.0,0.00330931]
[1748604113068,0.25776881,105910.0,105900.0,0.39538148]
[1748604113521,0.25776881,105910.0,105900.0,0.00330931]
[1748604114915,0.25776881,105910.0,105900.0,0.81905365]
[1748604115137,0.16671486,105910.0,105900.0,0.81905365]
[1748604115351,0.16671486,105910.0,105900.0,0.43594989]
[1748604116889,0.16671486,105910.0,105900.0,0.42698148]
[1748604117126,0.16671486,105910.0,105900.0,0.43595401]
[1748604118901,0.16671486,105910.0,105900.0,0.42075401]
[1748604119325,0.16671486,105910.0,105900.0,0.40435401]
[1748604119979,0.16671486,105910.0,105900.0,0.79642618]
[1748604120610,0.16671486,105910.0,105900.0,1.35768359]
[1748604120903,0.17615674,105910.0,105900.0,1.37835666]
[1748604121123,0.17615674,105910.0,105900.0,1.37835675]
[1748604121340,0.16671486,105910.0,105900.0,1.18005656]
[1748604123137,0.33361617,105910.0,105900.0,0.75558439]
[1748604123360,0.33361617,105910.0,105900.0,0.41558439]
[1748604123583,0.33361617,105910.0,105900.0,0.40436055]
[1748604124012,0.33361617,105910.0,105900.0,0.40436893]
[1748604125090,0.33361617,105910.0,105900.0,0.41365603]
[1748604125538,0.33361617,105910.0,105900.0,0.42489034]
[1748604128430,0.33361617,105910.0,105900.0,0.42492311]
[1748604130607,0.25776881,105910.0,105900.0,0.42492311]
[1748604131730,0.00944135,105910.0,105900.0,1.3992367]
[1748604131953,0.18887195,105920.0,105900.0,1.3992367]